[Event "Titled Tuesday Blitz September 21 2021"]
[White "Al-Tarboush, Ward"]
[Black "Tisaj, Domen"]
[WhiteFideId "7601450"]
[BlackFideId "14628708"]
[WhiteElo "2319"]
[BlackElo "2272"]
[Result "0-1"]
[Round "05"]
[TimeControl "180+1"]
[Date "2021.09.21"]
[WhiteClock "0:00:03"]
[BlackClock "0:00:11"]

1. e4 {[%clk 0:03:00]}  c5 {[%clk 0:02:59]} 2. Nf3 {[%clk 0:02:56]}  d6 {[%clk 0:03:00]} 3. d4 {[%clk 0:02:56]}  cxd4 {[%clk 0:03:01]} 4. Nxd4 {[%clk 0:02:57]}  Nf6 {[%clk 0:03:01]} 5. Nc3 {[%clk 0:02:58]}  Nc6 {[%clk 0:03:01]} 6. Bg5 {[%clk 0:02:57]}  e6 {[%clk 0:03:02]} 7. Qd2 {[%clk 0:02:57]}  a6 {[%clk 0:03:00]} 8. O-O-O {[%clk 0:02:56]}  Bd7 {[%clk 0:03:00]} 9. f4 {[%clk 0:02:56]}  h6 {[%clk 0:02:59]} 10. Bh4 {[%clk 0:02:55]}  b5 {[%clk 0:02:58]} 11. Bxf6 {[%clk 0:02:30]}  gxf6 {[%clk 0:02:59]} 12. Nb3 {[%clk 0:02:18]}  Qb6 {[%clk 0:02:58]} 13. Bd3 {[%clk 0:02:10]}  h5 {[%clk 0:02:58]} 14. Kb1 {[%clk 0:02:08]}  h4 {[%clk 0:02:41]} 15. Qe2 {[%clk 0:01:55]}  b4 {[%clk 0:02:12]} 16. Na4 {[%clk 0:01:53]}  Qb7 {[%clk 0:02:05]} 17. Bc4 {[%clk 0:01:22]}  Ne7 {[%clk 0:01:49]} 18. f5 {[%clk 0:00:59]}  Bxa4 {[%clk 0:01:46]} 19. fxe6 {[%clk 0:00:58]}  fxe6 {[%clk 0:01:36]} 20. Bxe6 {[%clk 0:00:59]}  Ng6 {[%clk 0:01:16]} 21. Bd5 {[%clk 0:00:47]}  Qc8 {[%clk 0:01:13]} 22. Bxa8 {[%clk 0:00:42]}  Qxa8 {[%clk 0:01:13]} 23. Qc4 {[%clk 0:00:42]}  Bb5 {[%clk 0:01:06]} 24. Qe6+ {[%clk 0:00:40]}  Be7 {[%clk 0:01:06]} 25. Rhe1 {[%clk 0:00:16]}  Bd7 {[%clk 0:00:59]} 26. Qc4 {[%clk 0:00:14]}  a5 {[%clk 0:00:53]} 27. Nd4 {[%clk 0:00:14]}  Ne5 {[%clk 0:00:52]} 28. Qb3 {[%clk 0:00:10]}  Qc8 {[%clk 0:00:52]} 29. Nf5 {[%clk 0:00:09]}  Bxf5 {[%clk 0:00:44]} 30. exf5 {[%clk 0:00:07]}  Qc6 {[%clk 0:00:38]} 31. Qe6 {[%clk 0:00:07]}  Kf8 {[%clk 0:00:38]} 32. Re3 {[%clk 0:00:04]}  Rg8 {[%clk 0:00:35]} 33. Rh3 {[%clk 0:00:04]}  Rxg2 {[%clk 0:00:35]} 34. Rc1 {[%clk 0:00:03]}  Rg4 {[%clk 0:00:29]} 35. b3 {[%clk 0:00:02]}  Qd7 {[%clk 0:00:21]} 36. Qd5 {[%clk 0:00:02]}  Qa7 {[%clk 0:00:19]} 37. Qb5 {[%clk 0:00:03]}  Qc5 {[%clk 0:00:17]} 38. Qa4 {[%clk 0:00:03]}  Nc6 {[%clk 0:00:13]} 39. Kb2 {[%clk 0:00:03]}  d5 {[%clk 0:00:11]} 40. Kb1 {[%clk 0:00:03]}  Bd6 {[%clk 0:00:12]} 41. Rd3 {[%clk 0:00:03]}  Be5 {[%clk 0:00:12]} 42. Rcd1 {[%clk 0:00:03]}  Rg2 {[%clk 0:00:11]} 43. R3d2 {[%clk 0:00:02]}  Rxd2 {[%clk 0:00:11]} 44. Rxd2 {[%clk 0:00:03]}  Qg1+ {[%clk 0:00:11]} 0-1


[Site "https://www.chess.com"]

[Event "Titled Tuesday Blitz September 21 2021"]
[White "Arabidze, Meri"]
[Black "Kislov, Oleg"]
[WhiteFideId "13604040"]
[BlackFideId "13503774"]
[WhiteElo "2432"]
[BlackElo "2252"]
[Result "1-0"]
[Round "05"]
[TimeControl "180+1"]
[Date "2021.09.21"]
[WhiteClock "0:00:43"]
[BlackClock "0:00:09"]

1. Nf3 {[%clk 0:03:00]}  d5 {[%clk 0:02:59]} 2. b3 {[%clk 0:03:01]}  Nf6 {[%clk 0:03:00]} 3. Bb2 {[%clk 0:03:01]}  c5 {[%clk 0:03:00]} 4. e3 {[%clk 0:03:02]}  Nc6 {[%clk 0:03:00]} 5. Bb5 {[%clk 0:03:01]}  Bd7 {[%clk 0:03:00]} 6. O-O {[%clk 0:02:59]}  e6 {[%clk 0:02:59]} 7. Bxc6 {[%clk 0:02:53]}  Bxc6 {[%clk 0:02:59]} 8. Ne5 {[%clk 0:02:53]}  Qc7 {[%clk 0:02:55]} 9. f4 {[%clk 0:02:53]}  Nd7 {[%clk 0:02:53]} 10. d3 {[%clk 0:02:51]}  Nxe5 {[%clk 0:02:52]} 11. Bxe5 {[%clk 0:02:52]}  Qd7 {[%clk 0:02:49]} 12. Nd2 {[%clk 0:02:52]}  f6 {[%clk 0:02:49]} 13. Bb2 {[%clk 0:02:52]}  Bd6 {[%clk 0:02:48]} 14. e4 {[%clk 0:02:32]}  O-O {[%clk 0:02:34]} 15. a4 {[%clk 0:02:21]}  b6 {[%clk 0:02:30]} 16. Qe2 {[%clk 0:02:16]}  a6 {[%clk 0:02:26]} 17. e5 {[%clk 0:02:15]}  Be7 {[%clk 0:02:22]} 18. exf6 {[%clk 0:02:14]}  Bxf6 {[%clk 0:02:18]} 19. Be5 {[%clk 0:02:14]}  b5 {[%clk 0:02:13]} 20. axb5 {[%clk 0:02:08]}  axb5 {[%clk 0:02:12]} 21. Nf3 {[%clk 0:02:07]}  d4 {[%clk 0:02:06]} 22. Bxf6 {[%clk 0:02:03]}  gxf6 {[%clk 0:02:04]} 23. Nd2 {[%clk 0:01:54]}  Qd5 {[%clk 0:01:53]} 24. Ne4 {[%clk 0:01:47]}  Qf5 {[%clk 0:01:24]} 25. Rxa8 {[%clk 0:01:38]}  Bxa8 {[%clk 0:01:22]} 26. Nd6 {[%clk 0:01:23]}  Qd5 {[%clk 0:01:17]} 27. Nxb5 {[%clk 0:01:23]}  Rf7 {[%clk 0:01:11]} 28. Na3 {[%clk 0:01:17]}  Rg7 {[%clk 0:01:09]} 29. Rf2 {[%clk 0:01:17]}  h5 {[%clk 0:00:47]} 30. Nc4 {[%clk 0:01:16]}  h4 {[%clk 0:00:47]} 31. Nb6 {[%clk 0:01:15]}  Qc6 {[%clk 0:00:38]} 32. Nxa8 {[%clk 0:01:14]}  h3 {[%clk 0:00:27]} 33. Qe4 {[%clk 0:01:02]}  Qa6 {[%clk 0:00:24]} 34. g3 {[%clk 0:00:54]}  Ra7 {[%clk 0:00:22]} 35. Qg6+ {[%clk 0:00:50]}  Kf8 {[%clk 0:00:21]} 36. Qxf6+ {[%clk 0:00:50]}  Ke8 {[%clk 0:00:20]} 37. Qh8+ {[%clk 0:00:47]}  Kd7 {[%clk 0:00:20]} 38. Qxh3 {[%clk 0:00:45]}  Rxa8 {[%clk 0:00:18]} 39. Qh7+ {[%clk 0:00:45]}  Kd6 {[%clk 0:00:18]} 40. Qe4 {[%clk 0:00:44]}  Qa1+ {[%clk 0:00:17]} 41. Kg2 {[%clk 0:00:45]}  Ra6 {[%clk 0:00:13]} 42. Re2 {[%clk 0:00:44]}  Ke7 {[%clk 0:00:12]} 43. f5 {[%clk 0:00:43]}  Qe1 {[%clk 0:00:09]} 44. Rxe1 {[%clk 0:00:43]} 1-0


[Site "https://www.chess.com"]

[Event "Titled Tuesday Blitz September 21 2021"]
[White "Aradhya, Garg"]
[Black "Obolentseva, Alexandra"]
[WhiteFideId "25006746"]
[BlackFideId "24153648"]
[WhiteElo "2146"]
[BlackElo "2113"]
[Result "1/2-1/2"]
[Round "05"]
[TimeControl "180+1"]
[Date "2021.09.21"]
[WhiteClock "0:00:08"]
[BlackClock "0:00:13"]

1. d4 {[%clk 0:03:00]}  Nf6 {[%clk 0:02:56]} 2. c4 {[%clk 0:03:00]}  g6 {[%clk 0:02:56]} 3. g3 {[%clk 0:03:00]}  Bg7 {[%clk 0:02:56]} 4. Bg2 {[%clk 0:03:01]}  O-O {[%clk 0:02:57]} 5. Nc3 {[%clk 0:03:01]}  d6 {[%clk 0:02:57]} 6. Nf3 {[%clk 0:03:01]}  c5 {[%clk 0:02:58]} 7. O-O {[%clk 0:03:00]}  cxd4 {[%clk 0:02:59]} 8. Nxd4 {[%clk 0:03:00]}  Nc6 {[%clk 0:02:59]} 9. e3 {[%clk 0:02:57]}  Bg4 {[%clk 0:02:58]} 10. Qd2 {[%clk 0:02:56]}  Qd7 {[%clk 0:02:52]} 11. b3 {[%clk 0:02:53]}  Bh3 {[%clk 0:02:46]} 12. Bb2 {[%clk 0:02:52]}  Bxg2 {[%clk 0:02:37]} 13. Kxg2 {[%clk 0:02:53]}  Rac8 {[%clk 0:02:35]} 14. Rfd1 {[%clk 0:02:36]}  Rfd8 {[%clk 0:02:28]} 15. e4 {[%clk 0:02:24]}  Nxd4 {[%clk 0:02:16]} 16. Qxd4 {[%clk 0:02:24]}  Nh5 {[%clk 0:02:00]} 17. Qe3 {[%clk 0:02:09]}  a6 {[%clk 0:01:57]} 18. a4 {[%clk 0:01:53]}  b5 {[%clk 0:01:51]} 19. axb5 {[%clk 0:01:52]}  axb5 {[%clk 0:01:51]} 20. Ra7 {[%clk 0:01:08]}  Qe6 {[%clk 0:01:44]} 21. Nd5 {[%clk 0:01:00]}  Bxb2 {[%clk 0:01:42]} 22. Rxe7 {[%clk 0:00:59]}  Qg4 {[%clk 0:01:36]} 23. f3 {[%clk 0:01:00]}  Nf4+ {[%clk 0:01:20]} 24. Nxf4 {[%clk 0:00:27]}  Qg5 {[%clk 0:01:15]} 25. Rb7 {[%clk 0:00:16]}  bxc4 {[%clk 0:01:10]} 26. bxc4 {[%clk 0:00:16]}  Be5 {[%clk 0:01:01]} 27. Nd5 {[%clk 0:00:16]}  Qxe3 {[%clk 0:01:01]} 28. Nxe3 {[%clk 0:00:17]}  Rb8 {[%clk 0:01:01]} 29. Rdb1 {[%clk 0:00:16]}  Rxb7 {[%clk 0:01:01]} 30. Rxb7 {[%clk 0:00:17]}  Ra8 {[%clk 0:01:01]} 31. f4 {[%clk 0:00:17]}  Ra2+ {[%clk 0:01:00]} 32. Kf3 {[%clk 0:00:16]}  Bd4 {[%clk 0:01:01]} 33. Nd5 {[%clk 0:00:16]}  h5 {[%clk 0:00:58]} 34. e5 {[%clk 0:00:12]}  dxe5 {[%clk 0:00:56]} 35. fxe5 {[%clk 0:00:13]}  Bxe5 {[%clk 0:00:56]} 36. Re7 {[%clk 0:00:10]}  Bd4 {[%clk 0:00:53]} 37. Re2 {[%clk 0:00:09]}  Ra3+ {[%clk 0:00:51]} 38. Ke4 {[%clk 0:00:08]}  Bc5 {[%clk 0:00:51]} 39. Nf6+ {[%clk 0:00:06]}  Kg7 {[%clk 0:00:50]} 40. Nd7 {[%clk 0:00:07]}  Bb4 {[%clk 0:00:44]} 41. Rc2 {[%clk 0:00:05]}  Ra7 {[%clk 0:00:40]} 42. Nb6 {[%clk 0:00:05]}  Bc5 {[%clk 0:00:32]} 43. Nd5 {[%clk 0:00:04]}  Ra1 {[%clk 0:00:29]} 44. Kf3 {[%clk 0:00:04]}  Rf1+ {[%clk 0:00:29]} 45. Kg2 {[%clk 0:00:04]}  Rf5 {[%clk 0:00:30]} 46. Re2 {[%clk 0:00:03]}  g5 {[%clk 0:00:29]} 47. h3 {[%clk 0:00:04]}  g4 {[%clk 0:00:24]} 48. hxg4 {[%clk 0:00:04]}  hxg4 {[%clk 0:00:25]} 49. Re4 {[%clk 0:00:04]}  Rf2+ {[%clk 0:00:25]} 50. Kh1 {[%clk 0:00:05]}  f5 {[%clk 0:00:24]} 51. Rf4 {[%clk 0:00:04]}  Rxf4 {[%clk 0:00:15]} 52. Nxf4 {[%clk 0:00:05]}  Kf6 {[%clk 0:00:15]} 53. Kg2 {[%clk 0:00:05]}  Ke5 {[%clk 0:00:15]} 54. Kf1 {[%clk 0:00:06]}  Kd4 {[%clk 0:00:15]} 55. Ke2 {[%clk 0:00:06]}  Kxc4 {[%clk 0:00:16]} 56. Ng6 {[%clk 0:00:06]}  Bd6 {[%clk 0:00:16]} 57. Nh4 {[%clk 0:00:05]}  Bxg3 {[%clk 0:00:14]} 58. Nxf5 {[%clk 0:00:06]}  Bf4 {[%clk 0:00:14]} 59. Ne3+ {[%clk 0:00:06]}  Bxe3 {[%clk 0:00:15]} 60. Kxe3 {[%clk 0:00:07]}  Kd5 {[%clk 0:00:15]} 61. Kf4 {[%clk 0:00:07]}  Kd4 {[%clk 0:00:16]} 62. Kg3 {[%clk 0:00:08]}  Ke4 {[%clk 0:00:13]} 63. Kxg4 {[%clk 0:00:08]} 1/2-1/2


[Site "https://www.chess.com"]

[Event "Titled Tuesday Blitz September 21 2021"]
[White "Azahari, Aliuddin"]
[Black "Nazaretyan, Tigran"]
[WhiteFideId "10500324"]
[BlackFideId "24162345"]
[WhiteElo "2151"]
[BlackElo "2212"]
[Result "0-1"]
[Round "05"]
[TimeControl "180+1"]
[Date "2021.09.21"]
[WhiteClock "0:00:07"]
[BlackClock "0:01:12"]

1. e4 {[%clk 0:03:00]}  c5 {[%clk 0:02:58]} 2. Nf3 {[%clk 0:02:56]}  Nc6 {[%clk 0:02:57]} 3. Bb5 {[%clk 0:02:55]}  g6 {[%clk 0:02:56]} 4. O-O {[%clk 0:02:55]}  Bg7 {[%clk 0:02:56]} 5. Re1 {[%clk 0:02:53]}  Nf6 {[%clk 0:02:54]} 6. Bxc6 {[%clk 0:02:47]}  dxc6 {[%clk 0:02:53]} 7. d3 {[%clk 0:02:47]}  Bg4 {[%clk 0:02:48]} 8. Nbd2 {[%clk 0:02:46]}  e5 {[%clk 0:02:37]} 9. h3 {[%clk 0:02:40]}  Bxf3 {[%clk 0:02:35]} 10. Nxf3 {[%clk 0:02:41]}  Nh5 {[%clk 0:02:29]} 11. a4 {[%clk 0:02:11]}  a5 {[%clk 0:02:28]} 12. Be3 {[%clk 0:01:59]}  b6 {[%clk 0:02:22]} 13. Nd2 {[%clk 0:01:57]}  O-O {[%clk 0:02:18]} 14. Nc4 {[%clk 0:01:56]}  Rb8 {[%clk 0:02:12]} 15. Qd2 {[%clk 0:01:39]}  Rb7 {[%clk 0:01:48]} 16. g4 {[%clk 0:01:25]}  Nf6 {[%clk 0:01:47]} 17. Nxe5 {[%clk 0:01:03]}  Nxe4 {[%clk 0:01:45]} 18. dxe4 {[%clk 0:00:39]}  Bxe5 {[%clk 0:01:38]} 19. Qxd8 {[%clk 0:00:26]}  Rxd8 {[%clk 0:01:38]} 20. Rab1 {[%clk 0:00:17]}  Rbd7 {[%clk 0:01:33]} 21. b3 {[%clk 0:00:17]}  Bc3 {[%clk 0:01:32]} 22. Rf1 {[%clk 0:00:15]}  h5 {[%clk 0:01:27]} 23. Kg2 {[%clk 0:00:15]}  Kg7 {[%clk 0:01:26]} 24. Kf3 {[%clk 0:00:15]}  Bd2 {[%clk 0:01:20]} 25. gxh5 {[%clk 0:00:15]}  Bxe3 {[%clk 0:01:17]} 26. Kxe3 {[%clk 0:00:11]}  gxh5 {[%clk 0:01:17]} 27. Rg1+ {[%clk 0:00:11]}  Kf6 {[%clk 0:01:18]} 28. h4 {[%clk 0:00:11]}  Rd2 {[%clk 0:01:16]} 29. Rbc1 {[%clk 0:00:11]}  c4 {[%clk 0:01:14]} 30. Rg5 {[%clk 0:00:10]}  cxb3 {[%clk 0:01:13]} 31. cxb3 {[%clk 0:00:10]}  R8d3+ {[%clk 0:01:12]} 32. Kf4 {[%clk 0:00:07]}  Rxf2# {[%clk 0:01:12]} 0-1


[Site "https://www.chess.com"]

[Event "Titled Tuesday Blitz September 21 2021"]
[White "Babazada, Khazar"]
[Black "Quparadze, Giga"]
[WhiteFideId "13413554"]
[BlackFideId "13602250"]
[WhiteElo "2315"]
[BlackElo "2658"]
[Result "1-0"]
[Round "05"]
[TimeControl "180+1"]
[Date "2021.09.21"]
[WhiteClock "0:00:32"]
[BlackClock "0:00:09"]

1. e4 {[%clk 0:03:00]}  c5 {[%clk 0:02:59]} 2. Nc3 {[%clk 0:03:01]}  e6 {[%clk 0:02:57]} 3. g3 {[%clk 0:03:01]}  a6 {[%clk 0:02:57]} 4. Bg2 {[%clk 0:03:02]}  b5 {[%clk 0:02:57]} 5. Nge2 {[%clk 0:03:03]}  Bb7 {[%clk 0:02:57]} 6. O-O {[%clk 0:03:03]}  Nc6 {[%clk 0:02:57]} 7. a4 {[%clk 0:03:03]}  b4 {[%clk 0:02:56]} 8. Nb1 {[%clk 0:03:04]}  e5 {[%clk 0:02:54]} 9. d3 {[%clk 0:03:04]}  Nf6 {[%clk 0:02:53]} 10. Bg5 {[%clk 0:03:03]}  Be7 {[%clk 0:02:53]} 11. Nd2 {[%clk 0:03:02]}  O-O {[%clk 0:02:52]} 12. Nc4 {[%clk 0:02:57]}  d5 {[%clk 0:02:42]} 13. exd5 {[%clk 0:02:43]}  Nxd5 {[%clk 0:02:41]} 14. Bxe7 {[%clk 0:02:43]}  Ndxe7 {[%clk 0:02:39]} 15. Nxe5 {[%clk 0:02:42]}  Qc7 {[%clk 0:02:39]} 16. Nxc6 {[%clk 0:02:36]}  Nxc6 {[%clk 0:02:40]} 17. Qd2 {[%clk 0:02:30]}  Ne5 {[%clk 0:02:40]} 18. Nf4 {[%clk 0:02:05]}  Bxg2 {[%clk 0:02:36]} 19. Kxg2 {[%clk 0:02:06]}  Qc6+ {[%clk 0:02:35]} 20. f3 {[%clk 0:02:05]}  Rae8 {[%clk 0:02:30]} 21. Rae1 {[%clk 0:02:03]}  g5 {[%clk 0:02:12]} 22. Nh5 {[%clk 0:01:44]}  h6 {[%clk 0:02:11]} 23. h3 {[%clk 0:01:39]}  f5 {[%clk 0:02:10]} 24. d4 {[%clk 0:01:28]}  cxd4 {[%clk 0:01:41]} 25. Qxd4 {[%clk 0:01:29]}  Qxc2+ {[%clk 0:01:39]} 26. Rf2 {[%clk 0:01:28]}  Qd3 {[%clk 0:01:25]} 27. Qb6 {[%clk 0:01:00]}  Kh7 {[%clk 0:00:49]} 28. Nf6+ {[%clk 0:00:55]}  Rxf6 {[%clk 0:00:48]} 29. Qxf6 {[%clk 0:00:56]}  Qd4 {[%clk 0:00:27]} 30. Qxf5+ {[%clk 0:00:54]}  Kg7 {[%clk 0:00:27]} 31. Re4 {[%clk 0:00:47]}  Qd6 {[%clk 0:00:19]} 32. Rfe2 {[%clk 0:00:43]}  Nxf3 {[%clk 0:00:12]} 33. Rxe8 {[%clk 0:00:33]}  Nh4+ {[%clk 0:00:09]} 34. gxh4 {[%clk 0:00:32]} 1-0


[Site "https://www.chess.com"]

[Event "Titled Tuesday Blitz September 21 2021"]
[White "Begunov, Konstantin"]
[Black "Anuj Shrivatri"]
[WhiteFideId "4118510"]
[BlackFideId "35070924"]
[WhiteElo "2262"]
[BlackElo "2038"]
[Result "1-0"]
[Round "05"]
[TimeControl "180+1"]
[Date "2021.09.21"]
[WhiteClock "0:02:09"]
[BlackClock "0:01:32"]

1. d4 {[%clk 0:02:40]}  Nf6 {[%clk 0:02:58]} 2. c4 {[%clk 0:02:40]}  g6 {[%clk 0:02:58]} 3. f3 {[%clk 0:02:40]}  Bg7 {[%clk 0:02:58]} 4. e4 {[%clk 0:02:40]}  d6 {[%clk 0:02:58]} 5. Nc3 {[%clk 0:02:41]}  O-O {[%clk 0:02:58]} 6. Be3 {[%clk 0:02:41]}  c5 {[%clk 0:02:53]} 7. dxc5 {[%clk 0:02:39]}  dxc5 {[%clk 0:02:52]} 8. Qxd8 {[%clk 0:02:40]}  Rxd8 {[%clk 0:02:53]} 9. Bxc5 {[%clk 0:02:41]}  Nc6 {[%clk 0:02:53]} 10. Nd5 {[%clk 0:02:42]}  Nd7 {[%clk 0:02:52]} 11. Nxe7+ {[%clk 0:02:42]}  Nxe7 {[%clk 0:02:51]} 12. Bxe7 {[%clk 0:02:43]}  Bxb2 {[%clk 0:02:52]} 13. Bxd8 {[%clk 0:02:43]}  Bc3+ {[%clk 0:02:52]} 14. Kd1 {[%clk 0:02:43]}  Bxa1 {[%clk 0:02:51]} 15. Ne2 {[%clk 0:02:44]}  Nb6 {[%clk 0:02:33]} 16. Nf4 {[%clk 0:02:40]}  Bd7 {[%clk 0:02:24]} 17. Bc7 {[%clk 0:02:31]}  Rc8 {[%clk 0:02:21]} 18. Bxb6 {[%clk 0:02:23]}  axb6 {[%clk 0:02:20]} 19. Nd5 {[%clk 0:02:23]}  Rd8 {[%clk 0:01:35]} 20. Kc2 {[%clk 0:02:11]}  Bc3 {[%clk 0:01:32]} 21. Kxc3 {[%clk 0:02:09]} 1-0


[Site "https://www.chess.com"]

[Event "Titled Tuesday Blitz September 21 2021"]
[White "Beulen, Marcel"]
[Black "Silva, Miguel Antonio Neto"]
[WhiteFideId "1001450"]
[BlackFideId "1911929"]
[WhiteElo "2406"]
[BlackElo "2283"]
[Result "0-1"]
[Round "05"]
[TimeControl "180+1"]
[Date "2021.09.21"]
[WhiteClock "0:00:01"]
[BlackClock "0:00:44"]

1. e4 {[%clk 0:03:00]}  c6 {[%clk 0:02:58]} 2. Nc3 {[%clk 0:02:59]}  d5 {[%clk 0:02:57]} 3. f4 {[%clk 0:02:59]}  dxe4 {[%clk 0:02:49]} 4. Nxe4 {[%clk 0:03:00]}  Nf6 {[%clk 0:02:49]} 5. Nf2 {[%clk 0:03:00]}  e6 {[%clk 0:02:42]} 6. Nf3 {[%clk 0:03:00]}  b6 {[%clk 0:02:40]} 7. b3 {[%clk 0:02:59]}  Bb7 {[%clk 0:02:38]} 8. Bb2 {[%clk 0:02:59]}  Be7 {[%clk 0:02:33]} 9. g3 {[%clk 0:02:59]}  c5 {[%clk 0:02:32]} 10. Bg2 {[%clk 0:02:59]}  O-O {[%clk 0:02:28]} 11. O-O {[%clk 0:02:59]}  Qc8 {[%clk 0:02:26]} 12. Qe2 {[%clk 0:02:49]}  Nc6 {[%clk 0:02:25]} 13. d3 {[%clk 0:02:47]}  Rd8 {[%clk 0:02:22]} 14. Rae1 {[%clk 0:02:47]}  Nd4 {[%clk 0:02:17]} 15. Nxd4 {[%clk 0:02:37]}  cxd4 {[%clk 0:02:12]} 16. Ne4 {[%clk 0:02:30]}  Bc6 {[%clk 0:02:11]} 17. h3 {[%clk 0:01:54]}  Qb7 {[%clk 0:02:04]} 18. Qf2 {[%clk 0:01:54]}  Rac8 {[%clk 0:02:00]} 19. Kh2 {[%clk 0:01:53]}  Nd5 {[%clk 0:01:50]} 20. Qxd4 {[%clk 0:01:43]}  Bf6 {[%clk 0:01:44]} 21. Nxf6+ {[%clk 0:01:15]}  Nxf6 {[%clk 0:01:42]} 22. Qf2 {[%clk 0:00:54]}  Bxg2 {[%clk 0:01:37]} 23. Bxf6 {[%clk 0:00:44]}  gxf6 {[%clk 0:01:30]} 24. Qxg2 {[%clk 0:00:44]}  Qxg2+ {[%clk 0:01:29]} 25. Kxg2 {[%clk 0:00:44]}  Rxc2+ {[%clk 0:01:24]} 26. Rf2 {[%clk 0:00:45]}  Rc3 {[%clk 0:01:20]} 27. Re3 {[%clk 0:00:28]}  Rdxd3 {[%clk 0:01:16]} 28. Rxd3 {[%clk 0:00:29]}  Rxd3 {[%clk 0:01:14]} 29. Rc2 {[%clk 0:00:30]}  Kg7 {[%clk 0:01:07]} 30. Kf2 {[%clk 0:00:21]}  Kg6 {[%clk 0:01:06]} 31. Re2 {[%clk 0:00:13]}  Kf5 {[%clk 0:01:01]} 32. Rc2 {[%clk 0:00:10]}  h5 {[%clk 0:01:00]} 33. Re2 {[%clk 0:00:08]}  h4 {[%clk 0:00:58]} 34. gxh4 {[%clk 0:00:07]}  Rxh3 {[%clk 0:00:57]} 35. Re3 {[%clk 0:00:03]}  Rh2+ {[%clk 0:00:54]} 36. Kg3 {[%clk 0:00:03]}  Rxa2 {[%clk 0:00:53]} 37. Rc3 {[%clk 0:00:03]}  Rb2 {[%clk 0:00:48]} 38. h5 {[%clk 0:00:03]}  a5 {[%clk 0:00:47]} 39. Kf3 {[%clk 0:00:01]}  b5 {[%clk 0:00:44]} 0-1


[Site "https://www.chess.com"]

[Event "Titled Tuesday Blitz September 21 2021"]
[White "Bortnyk, Olexandr"]
[Black "Ozen, Bahadir"]
[WhiteFideId "14120828"]
[BlackFideId "6337058"]
[WhiteElo "2723"]
[BlackElo "2503"]
[Result "1-0"]
[Round "05"]
[TimeControl "180+1"]
[Date "2021.09.21"]
[WhiteClock "0:01:05"]
[BlackClock "0:00:04"]

1. d4 {[%clk 0:03:00]}  Nf6 {[%clk 0:03:00]} 2. Nc3 {[%clk 0:02:56]}  d5 {[%clk 0:03:00]} 3. Bf4 {[%clk 0:02:56]}  a6 {[%clk 0:02:57]} 4. e3 {[%clk 0:02:56]}  e6 {[%clk 0:02:57]} 5. Nf3 {[%clk 0:02:56]}  Bd6 {[%clk 0:02:34]} 6. Bd3 {[%clk 0:02:55]}  O-O {[%clk 0:02:27]} 7. O-O {[%clk 0:02:55]}  c5 {[%clk 0:02:19]} 8. dxc5 {[%clk 0:02:56]}  Bxf4 {[%clk 0:02:08]} 9. exf4 {[%clk 0:02:57]}  Qc7 {[%clk 0:02:08]} 10. Qd2 {[%clk 0:02:32]}  Qxc5 {[%clk 0:02:02]} 11. Rfe1 {[%clk 0:02:32]}  Nc6 {[%clk 0:01:59]} 12. a3 {[%clk 0:02:32]}  b6 {[%clk 0:01:51]} 13. Ne2 {[%clk 0:02:32]}  Bb7 {[%clk 0:01:38]} 14. Ned4 {[%clk 0:02:13]}  Nxd4 {[%clk 0:01:37]} 15. Nxd4 {[%clk 0:02:14]}  Ne4 {[%clk 0:01:36]} 16. Qe3 {[%clk 0:02:13]}  Rac8 {[%clk 0:01:35]} 17. c3 {[%clk 0:02:10]}  Rfe8 {[%clk 0:01:34]} 18. Qh3 {[%clk 0:02:09]}  Qc7 {[%clk 0:01:21]} 19. f3 {[%clk 0:01:49]}  Nf6 {[%clk 0:01:21]} 20. Qh4 {[%clk 0:01:50]}  h6 {[%clk 0:01:13]} 21. Re3 {[%clk 0:01:42]}  e5 {[%clk 0:00:45]} 22. fxe5 {[%clk 0:01:43]}  Rxe5 {[%clk 0:00:46]} 23. Rae1 {[%clk 0:01:43]}  Rxe3 {[%clk 0:00:35]} 24. Rxe3 {[%clk 0:01:44]}  Re8 {[%clk 0:00:31]} 25. Rxe8+ {[%clk 0:01:27]}  Nxe8 {[%clk 0:00:31]} 26. Nf5 {[%clk 0:01:28]}  Qc5+ {[%clk 0:00:24]} 27. Kf1 {[%clk 0:01:26]}  Bc8 {[%clk 0:00:21]} 28. Qd8 {[%clk 0:01:22]}  Kf8 {[%clk 0:00:17]} 29. Nxg7 {[%clk 0:01:09]}  Kxg7 {[%clk 0:00:15]} 30. Qxe8 {[%clk 0:01:09]}  Be6 {[%clk 0:00:15]} 31. Qa4 {[%clk 0:01:09]}  Qe3 {[%clk 0:00:15]} 32. Qd4+ {[%clk 0:01:08]}  Qxd4 {[%clk 0:00:14]} 33. cxd4 {[%clk 0:01:09]}  a5 {[%clk 0:00:15]} 34. Kf2 {[%clk 0:01:07]}  f5 {[%clk 0:00:07]} 35. Kg3 {[%clk 0:01:06]}  Kf6 {[%clk 0:00:08]} 36. Kf4 {[%clk 0:01:07]}  Bd7 {[%clk 0:00:08]} 37. g4 {[%clk 0:01:05]}  fxg4 {[%clk 0:00:08]} 38. fxg4 {[%clk 0:01:06]}  Bc8 {[%clk 0:00:07]} 39. Bf5 {[%clk 0:01:05]}  Ba6 {[%clk 0:00:07]} 40. h4 {[%clk 0:01:05]}  Bd3 {[%clk 0:00:04]} 1-0


[Site "https://www.chess.com"]

[Event "Titled Tuesday Blitz September 21 2021"]
[White "Corrales Jimenez, Fidel"]
[Black "Krivonosov, Oleg"]
[WhiteFideId "3506690"]
[BlackFideId "11600349"]
[WhiteElo "2555"]
[BlackElo "2469"]
[Result "1/2-1/2"]
[Round "05"]
[TimeControl "180+1"]
[Date "2021.09.21"]
[WhiteClock "0:01:41"]
[BlackClock "0:02:22"]

1. e4 {[%clk 0:02:44]}  e5 {[%clk 0:02:59]} 2. Nf3 {[%clk 0:02:43]}  Nc6 {[%clk 0:02:58]} 3. Bb5 {[%clk 0:02:44]}  Nf6 {[%clk 0:02:58]} 4. d3 {[%clk 0:02:42]}  Bc5 {[%clk 0:02:56]} 5. O-O {[%clk 0:02:42]}  Nd4 {[%clk 0:02:56]} 6. Nxd4 {[%clk 0:02:42]}  Bxd4 {[%clk 0:02:56]} 7. c3 {[%clk 0:02:41]}  Bb6 {[%clk 0:02:56]} 8. Nd2 {[%clk 0:02:38]}  c6 {[%clk 0:02:55]} 9. Ba4 {[%clk 0:02:38]}  O-O {[%clk 0:02:51]} 10. Nf3 {[%clk 0:02:30]}  d6 {[%clk 0:02:50]} 11. h3 {[%clk 0:02:30]}  h6 {[%clk 0:02:49]} 12. Re1 {[%clk 0:02:29]}  Re8 {[%clk 0:02:47]} 13. b4 {[%clk 0:02:21]}  Nh7 {[%clk 0:02:38]} 14. d4 {[%clk 0:02:16]}  Qf6 {[%clk 0:02:38]} 15. d5 {[%clk 0:02:03]}  Bd7 {[%clk 0:02:36]} 16. c4 {[%clk 0:01:59]}  a5 {[%clk 0:02:24]} 17. dxc6 {[%clk 0:01:41]}  Bxc6 {[%clk 0:02:22]} 1/2-1/2


[Site "https://www.chess.com"]